[Event "2nd Namma Bengaluru Open-A 2025"]
[Site "Bengaluru"]
[Date "2025.04.11"]
[Round "3.19"]
[White "Srihari L R"]
[Black "Bhoir Paras Dilip"]
[Result "0-1"]
[Annotator "ChessBase"]
[ECO "B53"]
[WhiteElo "2481"]
[BlackElo "2085"]
[PlyCount "96"]
[EventDate "2025.04.10"]
[EventType "swiss"]
[EventCountry "IND"]
[SourceTitle "playchess.com"]
[Source "ChessBase"]
[SourceQuality "1"]
[TimeControl "5400+30"]

1. e4 {[%emt 0:00:05]} c5 {[%emt 0:03:54]} 2. Nf3 {[%emt 0:00:07]} d6 {[%emt 0:00:28]} 3. d4 {[%emt 0:00:55]} cxd4 {[%emt 0:00:06]} 4. Qxd4 {[%emt 0:00:22]} a6 {[%emt 0:01:45]} 5. c4 {[%emt 0:00:42]} Nc6 {[%emt 0:00:08]} 6. Qe3 {[%emt 0:00:15]} g6 {[%emt 0:00:47]} 7. Be2 {[%emt 0:00:20]} Bg7 {[%emt 0:01:38]} 8. O-O {[%emt 0:00:17]} Bg4 {[%emt 0:06:27]} 9. Nc3 {[%emt 0:08:08]} Rc8 {[%emt 0:04:24]} 10. b3 {[%emt 0:07:49]} Bxf3 {[%emt 0:10:06]} 11. gxf3 {[%emt 0:13:19]} Nd4 {[%emt 0:06:24]} 12. Rb1 {[%emt 0:02:03]} e5 {[%emt 0:08:36]} 13. f4 {[%emt 0:05:38]} Bh6 {[%emt 0:11:12]} 14. Nd5 {[%emt 0:07:25]} Nf6 {[%emt 0:08:51]} 15. Qd3 {[%emt 0:03:50]} Nxd5 {[%emt 0:03:42]} 16. exd5 {[%emt 0:00:56]} Qh4 {[%emt 0:01:04]} 17. fxe5 {[%emt 0:02:27]} Bxc1 {[%emt 0:01:25]} 18. Rbxc1 {[%emt 0:00:55]} dxe5 {[%emt 0:00:25]} 19. f4 {[%emt 0:08:08]} O-O {[%emt 0:01:31]} 20. fxe5 {[%emt 0:00:33]} Rce8 {[%emt 0:00:38]} 21. Rcd1 {[%emt 0:04:34]} Nf5 {[%emt 0:01:51]} 22. Rxf5 {[%emt 0:06:24]} gxf5 {[%emt 0:00:08]} 23. Qxf5 {[%emt 0:01:38]} Kh8 {[%emt 0:00:22]} 24. d6 {[%emt 0:05:27]} Rg8+ {[%emt 0:02:23]} 25. Kh1 {[%emt 0:00:07]} Re6 {[%emt 0:00:54]} 26. Qh5 {[%emt 0:05:34]} Qe4+ {[%emt 0:05:07]} 27. Bf3 {[%emt 0:03:46]} Qe3 {[%emt 0:02:15]} 28. Bg2 {[%emt 0:06:16]} Rxg2 {[%emt 0:07:42]} 29. Kxg2 {[%emt 0:00:15]} Rg6+ {[%emt 0:00:06]} 30. Qxg6 {[%emt 0:00:10]} Qe2+ {[%emt 0:00:16]} 31. Kg3 {[%emt 0:03:16]} Qxe5+ {[%emt 0:00:08]} 32. Kf3 {[%emt 0:00:12]} hxg6 {[%emt 0:00:32]} 33. Rd5 {[%emt 0:00:07]} Qf6+ {[%emt 0:00:58]} 34. Kg3 {[%emt 0:00:16]} Kg7 {[%emt 0:03:56]} 35. d7 {[%emt 0:00:04]} Qd8 {[%emt 0:00:03]} 36. c5 {[%emt 0:02:31]} Kf6 {[%emt 0:00:05]} 37. b4 {[%emt 0:00:41]} Ke6 {[%emt 0:01:09]} 38. Rd6+ {[%emt 0:00:15]} Ke7 {[%emt 0:01:11]} 39. h4 {[%emt 0:01:00]} Qxd7 {[%emt 0:05:08]} 40. Rxd7+ {[%emt 0:00:05]} Kxd7 {[%emt 0:00:02]} 41. Kf4 {[%emt 0:00:28]} f6 {[%emt 0:00:01]} 42. Ke4 {[%emt 0:01:19]} Kc6 {[%emt 0:00:06]} 43. Kd4 {[%emt 0:01:38]} Kb5 {[%emt 0:00:18]} 44. Kd5 {[%emt 0:01:32]} Kxb4 {[%emt 0:00:46]} 45. Ke6 {[%emt 0:00:36]} f5 {[%emt 0:00:07]} 46. Ke5 {[%emt 0:00:03]} Kxc5 {[%emt 0:00:19]} 47. Kf4 {[%emt 0:00:03]} Kd5 {[%emt 0:00:41]} 48. Kg5 {[%emt 0:00:27]} Ke6 {[%emt 0:00:06]} 0-1

[Event "2nd Namma Bengaluru Open-A 2025"]
[Site "Bengaluru"]
[Date "2025.04.11"]
[Round "3.20"]
[White "Kadam Arnav"]
[Black "Shahil Dey"]
[Result "0-1"]
[Annotator "ChessBase"]
[ECO "B28"]
[WhiteElo "1962"]
[BlackElo "2360"]
[PlyCount "98"]
[EventDate "2025.04.10"]
[EventType "swiss"]
[EventCountry "IND"]
[SourceTitle "playchess.com"]
[Source "ChessBase"]
[SourceQuality "1"]
[TimeControl "5400+30"]

1. e4 {[%emt 0:00:04]} c5 {[%emt 0:00:08]} 2. Nf3 {[%emt 0:00:06]} a6 {[%emt 0:00:04]} 3. c4 {[%emt 0:00:04]} Nc6 {[%emt 0:00:11]} 4. d4 {[%emt 0:00:19]} cxd4 {[%emt 0:00:10]} 5. Nxd4 {[%emt 0:00:03]} e5 {[%emt 0:01:40]} 6. Nf5 {[%emt 0:01:54]} d5 {[%emt 0:04:32]} 7. cxd5 {[%emt 0:02:47]} Bxf5 {[%emt 0:00:25]} 8. exf5 {[%emt 0:00:01]} Nd4 {[%emt 0:00:11]} 9. Bd3 {[%emt 0:00:09]} Qxd5 {[%emt 0:03:27]} 10. O-O {[%emt 0:03:34]} Rd8 {[%emt 0:04:48]} 11. Nd2 {[%emt 0:09:09]} Nf6 {[%emt 0:02:43]} 12. a3 {[%emt 0:13:59]} Be7 {[%emt 0:01:31]} 13. Re1 {[%emt 0:02:11]} O-O 14. b4 {[%emt 0:11:36]} b5 15. Rb1 {[%emt 0:10:01]} Rfe8 {[%emt 0:10:33]} 16. h3 {[%emt 0:08:28]} h6 {[%emt 0:11:09]} 17. Rb2 {[%emt 0:05:37]} a5 {[%emt 0:06:19]} 18. Ne4 {[%emt 0:09:08]} axb4 {[%emt 0:00:42]} 19. Nxf6+ {[%emt 0:01:51]} Bxf6 {[%emt 0:00:06]} 20. Be4 {[%emt 0:00:05]} Qc4 {[%emt 0:03:27]} 21. Rxb4 {[%emt 0:00:11]} Qc8 {[%emt 0:05:27]} 22. Qg4 {[%emt 0:00:53]} Qc3 {[%emt 0:03:59]} 23. Rf1 {[%emt 0:00:28]} Kf8 {[%emt 0:02:42]} 24. Kh2 {[%emt 0:01:56]} Be7 {[%emt 0:07:03]} 25. Rb1 {[%emt 0:09:55]} Qc4 {[%emt 0:06:05]} 26. Be3 {[%emt 0:04:20]} Ne2 {[%emt 0:04:53]} 27. Rb4 {[%emt 0:02:26]} Bxb4 {[%emt 0:01:47]} 28. f6 {[%emt 0:01:46]} gxf6 {[%emt 0:00:23]} 29. axb4 {[%emt 0:00:13]} Nd4 30. Qh4 {[%emt 0:01:39]} Qe6 {[%emt 0:09:00]} 31. Rc1 {[%emt 0:00:28]} Ke7 {[%emt 0:01:01]} 32. f4 {[%emt 0:00:30]} Rc8 {[%emt 0:03:57]} 33. Ra1 {[%emt 0:00:37]} Kd7 {[%emt 0:00:11]} 34. fxe5 {[%emt 0:00:29]} Qxe5+ {[%emt 0:00:42]} 35. Bf4 {[%emt 0:00:25]} Qxe4 {[%emt 0:00:39]} 36. Qxf6 {[%emt 0:00:29]} Nf3+ {[%emt 0:05:19]} 37. gxf3 {[%emt 0:00:02]} Rc2+ {[%emt 0:02:15]} 38. Kg3 {[%emt 0:00:04]} Qg6+ {[%emt 0:00:07]} 39. Qxg6 {[%emt 0:00:05]} fxg6 {[%emt 0:00:03]} 40. Bxh6 {[%emt 0:00:33]} Ree2 {[%emt 0:00:31]} 41. Rd1+ {[%emt 0:01:22]} Ke6 {[%emt 0:00:14]} 42. Bf8 {[%emt 0:00:43]} Rg2+ {[%emt 0:01:09]} 43. Kf4 {[%emt 0:00:11]} g5+ {[%emt 0:00:13]} 44. Ke3 {[%emt 0:00:51]} Rc3+ {[%emt 0:00:21]} 45. Kd4 {[%emt 0:00:47]} Rxf3 {[%emt 0:00:27]} 46. Bc5 {[%emt 0:00:19]} Rf4+ {[%emt 0:01:48]} 47. Ke3 {[%emt 0:00:09]} Rg3+ {[%emt 0:00:06]} 48. Ke2 {[%emt 0:00:10]} Rxh3 {[%emt 0:00:08]} 49. Rd6+ {[%emt 0:00:28]} Kf5 {[%emt 0:00:06]} 0-1

[Event "2nd Namma Bengaluru Open-A 2025"]
[Site "Bengaluru"]
[Date "2025.04.11"]
[Round "3.21"]
[White "Tarun V"]
[Black "Padmini, Rout"]
[Result "1/2-1/2"]
[Annotator "ChessBase"]
[ECO "D77"]
[WhiteElo "1917"]
[BlackElo "2354"]
[PlyCount "111"]
[EventDate "2025.04.10"]
[EventType "swiss"]
[EventCountry "IND"]
[SourceTitle "playchess.com"]
[Source "ChessBase"]
[SourceQuality "1"]
[TimeControl "5400+30"]

1. d4 {[%emt 1:31:00]} Nf6 {[%emt 0:00:11]} 2. Nf3 {[%emt 0:00:00]} g6 {[%emt 0:00:41]} 3. g3 {[%emt 0:00:00]} Bg7 {[%emt 0:00:08]} 4. Bg2 {[%emt 0:00:00]} O-O {[%emt 0:00:19]} 5. O-O {[%emt 0:00:00]} d5 {[%emt 0:03:00]} 6. c4 {[%emt 0:00:00]} dxc4 {[%emt 0:01:38]} 7. Na3 {[%emt 0:00:00]} Nc6 {[%emt 0:00:29]} 8. Nxc4 {[%emt 0:00:00]} Be6 {[%emt 0:00:25]} 9. Nce5 {[%emt 0:00:00]} Bd5 {[%emt 0:01:57]} 10. Bf4 {[%emt 0:00:00]} a5 {[%emt 0:08:09]} 11. Nxc6 {[%emt 0:00:00]} Bxc6 {[%emt 0:00:35]} 12. Be5 {[%emt 0:00:00]} Bd5 {[%emt 0:07:39]} 13. Re1 {[%emt 0:00:00]} c6 {[%emt 0:01:33]} 14. Qc2 {[%emt 0:00:00]} Be4 {[%emt 0:04:49]} 15. Qb3 {[%emt 0:00:00]} Qd7 {[%emt 0:00:49]} 16. a4 {[%emt 0:00:00]} Bh6 {[%emt 0:08:52]} 17. Bxf6 {[%emt 0:00:00]} exf6 {[%emt 0:01:00]} 18. e3 {[%emt 0:00:00]} Rfe8 {[%emt 0:01:33]} 19. Nd2 {[%emt 0:00:00]} Bxg2 {[%emt 0:02:23]} 20. Kxg2 {[%emt 0:00:00]} Bf8 {[%emt 0:01:19]} 21. Rec1 {[%emt 0:00:00]} Bb4 {[%emt 0:01:00]} 22. Qd3 {[%emt 0:00:00]} Kg7 {[%emt 0:01:42]} 23. Rc2 {[%emt 0:00:00]} Rad8 {[%emt 0:01:20]} 24. Nb3 {[%emt 0:00:00]} Re7 {[%emt 0:02:36]} 25. Qc4 {[%emt 0:00:00]} Qf5 {[%emt 0:04:25]} 26. Nc5 {[%emt 0:00:00]} Bxc5 {[%emt 0:06:16]} 27. Qxc5 {[%emt 0:00:00]} Qe4+ {[%emt 0:00:10]} 28. Kg1 {[%emt 0:00:00]} Rd5 {[%emt 0:04:57]} 29. Qc4 {[%emt 0:00:00]} h5 {[%emt 0:00:11]} 30. Rac1 {[%emt 0:00:00]} h4 {[%emt 0:03:05]} 31. Qf1 {[%emt 0:01:17]} hxg3 {[%emt 0:00:44]} 32. hxg3 {[%emt 0:00:03]} Re8 {[%emt 0:00:59]} 33. Qg2 {[%emt 0:00:44]} Qd3 {[%emt 0:01:36]} 34. Rc3 {[%emt 0:02:54]} Qd2 {[%emt 0:01:36]} 35. f4 {[%emt 0:04:30]} Qxg2+ {[%emt 0:08:47]} 36. Kxg2 {[%emt 0:02:14]} f5 {[%emt 0:02:15]} 37. Kf3 Kf6 {[%emt 0:01:49]} 38. Rc5 {[%emt 0:01:29]} Red8 {[%emt 0:00:59]} 39. g4 {[%emt 0:02:26]} fxg4+ {[%emt 0:04:50]} 40. Kxg4 {[%emt 0:00:02]} Rxc5 {[%emt 0:02:04]} 41. Rxc5 {[%emt 0:00:03]} Rd5 {[%emt 0:00:13]} 42. Rc3 {[%emt 0:01:41]} Ke6 {[%emt 0:00:44]} 43. Kf3 {[%emt 0:03:01]} Kd6 {[%emt 0:01:36]} 44. Rc2 {[%emt 0:00:27]} Rh5 {[%emt 0:02:19]} 45. Ke4 {[%emt 0:00:31]} Rh1 {[%emt 0:01:28]} 46. Kd3 Rd1+ {[%emt 0:00:59]} 47. Kc4 {[%emt 0:00:54]} Re1 {[%emt 0:01:37]} 48. Kd3 {[%emt 0:00:03]} Ra1 {[%emt 0:00:28]} 49. b3 {[%emt 0:00:17]} Rb1 {[%emt 0:00:41]} 50. Kc3 b5 {[%emt 0:04:16]} 51. axb5 {[%emt 0:00:35]} cxb5 {[%emt 0:00:04]} 52. Ra2 {[%emt 0:00:17]} Rc1+ {[%emt 0:02:31]} 53. Kd2 {[%emt 0:00:18]} Rb1 {[%emt 0:00:11]} 54. Kc2 {[%emt 0:00:22]} Re1 {[%emt 0:00:15]} 55. Kd2 {[%emt 0:00:37]} Rb1 {[%emt 0:00:04]} 56. Kc2 {[%emt 0:00:05]} 1/2-1/2

[Event "2nd Namma Bengaluru Open-A 2025"]
[Site "Bengaluru"]
[Date "2025.04.11"]
[Round "3.22"]
[White "Dzhumaev, Marat"]
[Black "Divith Reddy Adulla"]
[Result "1-0"]
[Annotator "ChessBase"]
[ECO "A00"]
[WhiteElo "2352"]
[BlackElo "1858"]
[PlyCount "119"]
[EventDate "2025.04.10"]
[EventType "swiss"]
[EventCountry "IND"]
[SourceTitle "playchess.com"]
[Source "ChessBase"]
[SourceQuality "1"]
[TimeControl "5400+30"]

1. g3 {[%emt 0:00:08]} d5 {[%emt 0:00:30]} 2. Bg2 {[%emt 0:00:10]} Nf6 {[%emt 0:00:42]} 3. d3 {[%emt 0:00:19]} e6 {[%emt 0:00:59]} 4. e4 {[%emt 0:02:16]} dxe4 {[%emt 0:07:39]} 5. dxe4 {[%emt 0:00:07]} Qxd1+ {[%emt 0:00:15]} 6. Kxd1 {[%emt 0:00:07]} e5 {[%emt 0:00:20]} 7. f3 {[%emt 0:04:19]} Nc6 {[%emt 0:01:39]} 8. c3 {[%emt 0:01:19]} Be6 {[%emt 0:00:35]} 9. Nd2 {[%emt 0:01:28]} O-O-O {[%emt 0:00:33]} 10. Bh3 {[%emt 0:00:49]} Bxh3 {[%emt 0:04:00]} 11. Nxh3 {[%emt 0:00:10]} h6 {[%emt 0:00:55]} 12. Ke2 {[%emt 0:00:34]} g5 {[%emt 0:02:20]} 13. Nf2 {[%emt 0:02:15]} Be7 {[%emt 0:06:16]} 14. Nc4 {[%emt 0:00:48]} Nd7 {[%emt 0:10:44]} 15. Ne3 {[%emt 0:08:43]} Bc5 {[%emt 0:07:20]} 16. b4 {[%emt 0:11:33]} Bxe3 {[%emt 0:01:49]} 17. Bxe3 {[%emt 0:00:07]} Ne7 {[%emt 0:02:47]} 18. h4 {[%emt 0:01:13]} f6 {[%emt 0:00:40]} 19. Rad1 {[%emt 0:04:41]} Ng6 {[%emt 0:11:29]} 20. h5 {[%emt 0:09:07]} Ne7 {[%emt 0:00:09]} 21. Rhg1 {[%emt 0:12:17]} f5 {[%emt 0:12:40]} 22. exf5 {[%emt 0:00:09]} Nxf5 {[%emt 0:00:07]} 23. Ne4 {[%emt 0:00:11]} Nxe3 {[%emt 0:01:25]} 24. Kxe3 {[%emt 0:00:06]} Nb6 {[%emt 0:00:11]} 25. Ke2 {[%emt 0:02:24]} Nd5 {[%emt 0:04:26]} 26. Rd3 {[%emt 0:00:34]} b5 {[%emt 0:01:53]} 27. Ra1 {[%emt 0:05:36]} Nb6 {[%emt 0:01:27]} 28. Rxd8+ {[%emt 0:00:14]} Rxd8 {[%emt 0:00:10]} 29. Rd1 {[%emt 0:00:08]} Nd5 {[%emt 0:01:08]} 30. Ra1 {[%emt 0:03:14]} Nb6 31. Nf6 {[%emt 0:04:23]} Rd6 {[%emt 0:02:43]} 32. Ng4 {[%emt 0:01:41]} Nc4 {[%emt 0:01:13]} 33. a4 {[%emt 0:01:14]} Rd2+ {[%emt 0:03:35]} 34. Kf1 {[%emt 0:02:20]} Rd3 {[%emt 0:01:29]} 35. Kg2 {[%emt 0:03:34]} bxa4 {[%emt 0:05:51]} 36. Rxa4 {[%emt 0:00:09]} Nd2 {[%emt 0:01:27]} 37. Nxe5 {[%emt 0:02:13]} Rxc3 {[%emt 0:01:10]} 38. Ra2 {[%emt 0:01:50]} Re3 {[%emt 0:03:37]} 39. Ng4 {[%emt 0:00:58]} Rd3 {[%emt 0:00:08]} 40. Nxh6 {[%emt 0:00:45]} Nxf3 {[%emt 0:01:00]} 41. Ng4 {[%emt 0:00:06]} Nd4 {[%emt 0:01:22]} 42. Rf2 {[%emt 0:00:53]} Ne6 {[%emt 0:01:04]} 43. h6 {[%emt 0:00:23]} Rd8 {[%emt 0:00:32]} 44. Rf7 {[%emt 0:01:09]} Kb7 {[%emt 0:00:56]} 45. Re7 {[%emt 0:01:01]} Nd4 {[%emt 0:00:55]} 46. Re5 {[%emt 0:00:47]} Nc6 {[%emt 0:00:39]} 47. Rxg5 {[%emt 0:00:09]} Rh8 {[%emt 0:00:07]} 48. b5 {[%emt 0:02:15]} Nd4 {[%emt 0:00:07]} 49. Rd5 {[%emt 0:01:56]} Ne6 {[%emt 0:00:35]} 50. Kf3 {[%emt 0:00:30]} Kb6 {[%emt 0:00:47]} 51. Ke4 {[%emt 0:00:58]} c6 {[%emt 0:00:14]} 52. bxc6 {[%emt 0:00:28]} Kxc6 {[%emt 0:00:08]} 53. Rh5 {[%emt 0:00:30]} Kd6 {[%emt 0:01:21]} 54. Ne5 {[%emt 0:00:28]} Rh7 {[%emt 0:00:11]} 55. Kf5 {[%emt 0:02:40]} a5 {[%emt 0:00:56]} 56. Kf6 {[%emt 0:00:31]} a4 {[%emt 0:00:40]} 57. Nf7+ {[%emt 0:00:16]} Kd7 {[%emt 0:00:14]} 58. Rd5+ {[%emt 0:00:18]} Kc6 {[%emt 0:00:42]} 59. Kxe6 {[%emt 0:00:34]} a3 {[%emt 0:00:07]} 60. Ra5 {[%emt 0:00:12]} 1-0

[Event "2nd Namma Bengaluru Open-A 2025"]
[Site "Bengaluru"]
[Date "2025.04.11"]
[Round "3.23"]
[White "Kavin E"]
[Black "John Veny Akkarakaran"]
[Result "0-1"]
[Annotator "ChessBase"]
[ECO "C01"]
[WhiteElo "1855"]
[BlackElo "2350"]
[PlyCount "96"]
[EventDate "2025.04.10"]
[EventType "swiss"]
[EventCountry "IND"]
[SourceTitle "playchess.com"]
[Source "ChessBase"]
[SourceQuality "1"]
[TimeControl "5400+30"]

1. e4 {[%emt 0:00:10]} e6 {[%emt 0:06:15]} 2. d4 {[%emt 0:02:11]} d5 {[%emt 0:00:10]} 3. exd5 {[%emt 0:01:52]} exd5 {[%emt 0:01:41]} 4. Bd3 {[%emt 0:00:27]} c5 {[%emt 0:05:37]} 5. c3 {[%emt 0:01:32]} Nf6 {[%emt 1:19:17]} 6. Bf4 {[%emt 0:00:13]} Nc6 {[%emt 0:00:00]} 7. Ne2 {[%emt 0:02:07]} Be7 {[%emt 0:00:00]} 8. O-O {[%emt 0:00:08]} O-O {[%emt 0:00:00]} 9. Nd2 {[%emt 0:06:43]} Bg4 {[%emt 0:00:00]} 10. dxc5 {[%emt 0:02:46]} Bxc5 {[%emt 0:00:00]} 11. Qa4 {[%emt 0:02:06]} h6 {[%emt 0:00:00]} 12. Ng3 {[%emt 0:01:40]} Qd7 {[%emt 0:00:00]} 13. h3 {[%emt 0:02:49]} Be6 {[%emt 0:00:00]} 14. Nf3 {[%emt 0:00:37]} Rac8 {[%emt 0:00:00]} 15. Rad1 {[%emt 0:02:53]} Ne5 {[%emt 0:00:00]} 16. Qxd7 {[%emt 0:00:09]} Nxf3+ {[%emt 0:00:00]} 17. gxf3 {[%emt 0:00:07]} Bxd7 {[%emt 0:00:00]} 18. Nf5 {[%emt 0:01:22]} Rfe8 {[%emt 0:00:00]} 19. Kh1 {[%emt 0:02:07]} Rc6 {[%emt 0:00:00]} 20. Rg1 {[%emt 0:03:21]} Bxf5 {[%emt 0:00:00]} 21. Bxf5 {[%emt 0:00:01]} Bxf2 {[%emt 0:00:00]} 22. Rg2 {[%emt 0:00:15]} Be3 {[%emt 0:00:00]} 23. Bh2 {[%emt 0:00:24]} Bb6 {[%emt 0:00:00]} 24. Bf4 {[%emt 0:01:12]} Kf8 {[%emt 0:00:00]} 25. h4 {[%emt 0:04:45]} Re7 {[%emt 0:00:00]} 26. c4 {[%emt 0:01:53]} Rxc4 {[%emt 0:00:43]} 27. Bg3 {[%emt 0:01:36]} Nh5 {[%emt 0:02:52]} 28. Bh2 {[%emt 0:02:59]} Bc7 {[%emt 0:02:24]} 29. Bxc7 {[%emt 0:00:38]} Rexc7 {[%emt 0:00:21]} 30. Rxd5 {[%emt 0:03:05]} Rxh4+ {[%emt 0:00:07]} 31. Kg1 {[%emt 0:00:04]} g6 {[%emt 0:02:01]} 32. Be4 {[%emt 0:02:17]} Nf6 {[%emt 0:01:16]} 33. Rd8+ {[%emt 0:00:44]} Ke7 {[%emt 0:00:26]} 34. Rh8 {[%emt 0:01:51]} Rc1+ {[%emt 0:01:17]} 35. Kf2 {[%emt 0:00:04]} Nxe4+ {[%emt 0:00:09]} 36. Ke3 {[%emt 0:00:35]} Nd6 {[%emt 0:00:41]} 37. Re2 {[%emt 0:00:32]} Kf6 {[%emt 0:00:24]} 38. Rd8 {[%emt 0:00:27]} Nc4+ {[%emt 0:00:29]} 39. Kf2 {[%emt 0:00:09]} Rh2+ {[%emt 0:00:11]} 40. Kg3 {[%emt 0:00:04]} Rxe2 {[%emt 0:00:05]} 41. Rd7 {[%emt 0:00:05]} Rg1+ {[%emt 0:00:16]} 42. Kh3 {[%emt 0:00:05]} Reg2 {[%emt 0:01:00]} 43. Rd4 {[%emt 0:00:07]} Rg3+ {[%emt 0:00:29]} 44. Kh2 {[%emt 0:00:05]} Ne3 {[%emt 0:00:13]} 45. Rf4+ {[%emt 0:00:05]} Kg5 {[%emt 0:00:14]} 46. Rg4+ {[%emt 0:00:08]} Nxg4+ {[%emt 0:00:10]} 47. fxg4 {[%emt 0:00:05]} Kh4 {[%emt 0:00:14]} 48. g5 {[%emt 0:00:05]} R3g2# {[%emt 0:00:07]} 0-1

[Event "2nd Namma Bengaluru Open-A 2025"]
[Site "Bengaluru"]
[Date "2025.04.11"]
[Round "3.24"]
[White "Jaiswal, Sanskrit"]
[Black "Rajesh, V A V"]
[Result "0-1"]
[Annotator "ChessBase"]
[ECO "C47"]
[WhiteElo "1819"]
[BlackElo "2331"]
[PlyCount "102"]
[EventDate "2025.04.10"]
[EventType "swiss"]
[EventCountry "IND"]
[SourceTitle "playchess.com"]
[Source "ChessBase"]
[SourceQuality "1"]
[TimeControl "5400+30"]

1. e4 {[%emt 0:00:16]} e5 {[%emt 0:00:35]} 2. Nf3 {[%emt 0:00:16]} Nc6 {[%emt 0:00:24]} 3. d4 {[%emt 0:00:04]} exd4 {[%emt 0:00:06]} 4. Nxd4 {[%emt 0:00:04]} Nf6 {[%emt 0:00:06]} 5. Nc3 {[%emt 0:00:06]} Bb4 {[%emt 0:00:10]} 6. Nxc6 {[%emt 0:00:10]} bxc6 {[%emt 0:00:05]} 7. Bd3 {[%emt 0:00:09]} O-O {[%emt 0:01:16]} 8. O-O {[%emt 0:00:08]} Re8 {[%emt 0:01:10]} 9. Qf3 {[%emt 0:00:26]} d6 {[%emt 0:01:37]} 10. h3 {[%emt 0:00:09]} Nd7 {[%emt 0:05:34]} 11. Bf4 {[%emt 0:04:11]} Bxc3 {[%emt 0:02:05]} 12. bxc3 {[%emt 0:00:18]} Qf6 {[%emt 0:00:14]} 13. Be2 {[%emt 0:02:11]} Nc5 {[%emt 0:01:47]} 14. e5 {[%emt 0:09:09]} dxe5 {[%emt 0:00:53]} 15. Be3 {[%emt 0:00:06]} Nd7 {[%emt 0:03:06]} 16. Qg3 {[%emt 0:03:53]} Nb6 {[%emt 0:07:25]} 17. c4 {[%emt 0:04:24]} Be6 {[%emt 0:03:41]} 18. c5 {[%emt 0:02:14]} Nd5 {[%emt 0:00:30]} 19. Bg5 {[%emt 0:00:36]} Qg6 {[%emt 0:01:01]} 20. Rfe1 {[%emt 0:01:08]} f6 {[%emt 0:04:49]} 21. Bh4 {[%emt 0:01:13]} Qxg3 {[%emt 0:02:23]} 22. Bxg3 {[%emt 0:00:05]} Nb4 {[%emt 0:00:16]} 23. Bf3 {[%emt 0:00:56]} Bd5 {[%emt 0:01:09]} 24. Bxd5+ {[%emt 0:00:43]} cxd5 {[%emt 0:00:02]} 25. Re2 {[%emt 0:00:08]} Na6 {[%emt 0:00:51]} 26. Rd1 {[%emt 0:01:14]} c6 {[%emt 0:01:12]} 27. c4 {[%emt 0:00:35]} dxc4 {[%emt 0:01:49]} 28. Re4 {[%emt 0:00:07]} Red8 {[%emt 0:02:00]} 29. Rxd8+ {[%emt 0:01:36]} Rxd8 {[%emt 0:00:03]} 30. Rxc4 {[%emt 0:00:08]} Rd1+ {[%emt 0:00:08]} 31. Kh2 {[%emt 0:00:12]} Rd4 {[%emt 0:00:12]} 32. Rc3 {[%emt 0:00:36]} Ra4 {[%emt 0:00:09]} 33. a3 {[%emt 0:00:35]} Nc7 {[%emt 0:03:08]} 34. Rd3 {[%emt 0:06:06]} Ne6 {[%emt 0:00:23]} 35. f3 {[%emt 0:02:55]} Nd4 {[%emt 0:03:42]} 36. Bf2 {[%emt 0:01:59]} Kf7 {[%emt 0:00:05]} 37. f4 {[%emt 0:03:22]} Ke6 {[%emt 0:01:02]} 38. fxe5 {[%emt 0:00:13]} fxe5 {[%emt 0:00:04]} 39. Rg3 {[%emt 0:02:11]} g6 {[%emt 0:00:12]} 40. Rg4 {[%emt 0:00:37]} Kd5 {[%emt 0:00:20]} 41. h4 {[%emt 0:06:19]} Rxa3 {[%emt 0:01:04]} 42. h5 {[%emt 0:00:13]} gxh5 {[%emt 0:00:08]} 43. Rg5 {[%emt 0:00:05]} Ra2 {[%emt 0:00:09]} 44. Kg1 {[%emt 0:00:40]} Ne2+ {[%emt 0:00:55]} 45. Kf1 {[%emt 0:00:38]} Nf4 {[%emt 0:00:29]} 46. Bg3 {[%emt 0:00:06]} Ra4 {[%emt 0:04:39]} 47. Bh2 {[%emt 0:00:50]} h4 {[%emt 0:01:02]} 48. Rg4 {[%emt 0:01:27]} h3 {[%emt 0:00:55]} 49. gxh3 {[%emt 0:00:27]} Ra1+ {[%emt 0:00:04]} 50. Kf2 {[%emt 0:00:07]} Ra2+ {[%emt 0:00:03]} 51. Kg1 {[%emt 0:00:19]} Nxh3+ {[%emt 0:50:48]} 0-1

[Event "2nd Namma Bengaluru Open-A 2025"]
[Site "Bengaluru"]
[Date "2025.04.11"]
[Round "3.25"]
[White "Sanket Chakravarty"]
[Black "Soboleva, Anastasia"]
[Result "1-0"]
[Annotator "ChessBase"]
[ECO "C01"]
[WhiteElo "2317"]
[BlackElo "1792"]
[PlyCount "63"]
[EventDate "2025.04.10"]
[EventType "swiss"]
[EventCountry "IND"]
[SourceTitle "playchess.com"]
[Source "ChessBase"]
[SourceQuality "1"]
[TimeControl "5400+30"]

1. c4 {[%emt 0:00:50]} e5 {[%emt 0:05:51]} 2. e3 {[%emt 0:00:18]} Nf6 {[%emt 0:01:44]} 3. Nc3 {[%emt 0:00:19]} c6 {[%emt 0:08:28]} 4. d4 {[%emt 0:00:40]} exd4 {[%emt 0:00:13]} 5. exd4 {[%emt 0:01:11]} d5 {[%emt 0:00:22]} 6. Nf3 {[%emt 0:00:22]} Bf5 {[%emt 0:03:09]} 7. Qb3 {[%emt 0:17:38]} Qe7+ {[%emt 0:09:23]} 8. Be3 {[%emt 0:01:14]} Ng4 {[%emt 0:16:08]} 9. cxd5 {[%emt 0:01:03]} Nxe3 {[%emt 0:08:48]} 10. fxe3 {[%emt 0:00:10]} Qxe3+ {[%emt 0:00:34]} 11. Be2 {[%emt 0:00:12]} b6 {[%emt 0:05:34]} 12. dxc6 {[%emt 0:04:37]} Nxc6 {[%emt 0:17:39]} 13. Qb5 {[%emt 0:05:41]} Bd7 {[%emt 0:00:49]} 14. Nd5 {[%emt 0:00:51]} Qe4 {[%emt 0:03:29]} 15. Nc7+ {[%emt 0:00:40]} Kd8 {[%emt 0:00:05]} 16. Nxa8 {[%emt 0:00:26]} Nxd4 {[%emt 0:03:07]} 17. Qd3 {[%emt 0:02:17]} Nc2+ {[%emt 0:03:04]} 18. Kd2 {[%emt 0:00:44]} Qxd3+ {[%emt 0:02:52]} 19. Bxd3 {[%emt 0:00:08]} Nxa1 {[%emt 0:00:07]} 20. Rxa1 {[%emt 0:00:41]} Bb4+ {[%emt 0:02:25]} 21. Kd1 {[%emt 0:01:21]} Bc6 {[%emt 0:04:36]} 22. Ne5 {[%emt 0:00:38]} Bd5 {[%emt 0:00:27]} 23. Rc1 {[%emt 0:00:43]} Re8 {[%emt 0:00:14]} 24. Nc6+ {[%emt 0:00:41]} Bxc6 {[%emt 0:00:36]} 25. Rxc6 {[%emt 0:00:03]} Re3 {[%emt 0:02:39]} 26. Kc2 {[%emt 0:00:17]} Bc5 {[%emt 0:00:34]} 27. Nc7 {[%emt 0:00:29]} Kd7 {[%emt 0:00:13]} 28. Bb5 {[%emt 0:00:12]} Re2+ {[%emt 0:00:47]} 29. Kd1 {[%emt 0:00:10]} Rxb2 {[%emt 0:00:23]} 30. Rxc5+ {[%emt 0:00:05]} Kd6 {[%emt 0:00:05]} 31. Rc6+ {[%emt 0:00:06]} Kd7 {[%emt 0:00:11]} 32. Rc2+ {[%emt 0:00:05]} 1-0